[Event "1st Gujarat GM Open 2018"]
[Site "Ahmedabad"]
[Date "2018.10.07"]
[Round "3"]
[White "Himanshu Ranjan"]
[Black "Sahoo, Utkal Ranjan"]
[Result "1/2-1/2"]
[ECO "D57"]
[WhiteElo "1970"]
[BlackElo "2332"]
[Annotator "NA"]
[PlyCount "224"]
[EventDate "2018.10.05"]
[EventType "swiss"]
[EventCountry "IND"]
[SourceTitle "playchess.com"]
[Source "ChessBase"]
[SourceQuality "1"]
[TimeControl "5400+30"]

1. d4 {[%emt 0:00:00]} Nf6 {[%emt 0:00:00]} 2. c4 {[%emt 0:00:00]} e6 {[%emt 0:00:00]} 3. Nc3 {[%emt 0:00:00]} d5 {[%emt 0:00:09]} 4. Bg5 {[%emt 0:00:00]} Be7 {[%emt 0:00:30]} 5. e3 {[%emt 0:00:00]} O-O {[%emt 0:00:10]} 6. Nf3 {[%emt 0:00:00]} h6 {[%emt 0:00:10]} 7. Bh4 {[%emt 0:00:05]} Ne4 {[%emt 0:00:36]} 8. Bxe7 {[%emt 0:00:44]} Qxe7 {[%emt 0:00:01]} 9. cxd5 {[%emt 0:00:19]} Nxc3 {[%emt 0:00:05]} 10. bxc3 {[%emt 0:00:07]} exd5 {[%emt 0:00:04]} 11. Qb3 {[%emt 0:00:11]} Rd8 {[%emt 0:00:41]} 12. c4 {[%emt 0:02:20]} Be6 {[%emt 0:31:51]} 13. c5 {[%emt 0:31:09]} b6 {[%emt 0:00:30]} 14. Rc1 {[%emt 0:00:34]} bxc5 {[%emt 0:02:18]} 15. Rxc5 {[%emt 0:12:14]} Nd7 {[%emt 0:00:17]} 16. Rxc7 {[%emt 0:05:39]} Rab8 {[%emt 0:00:30]} 17. Qc2 {[%emt 0:00:37]} Qa3 {[%emt 0:02:37]} 18. Bd3 {[%emt 0:06:35]} Rb2 {[%emt 0:04:10]} 19. Qc3 {[%emt 0:01:14]} Qxc3+ {[%emt 0:08:46]} 20. Rxc3 {[%emt 0:00:02]} Rxa2 {[%emt 0:00:13]} 21. Nd2 {[%emt 0:04:21]} Rb8 {[%emt 0:03:43]} 22. Ke2 {[%emt 0:00:36]} Rbb2 {[%emt 0:00:20]} 23. Rd1 {[%emt 0:00:23]} Nb6 {[%emt 0:00:26]} 24. Bb1 {[%emt 0:00:37]} Ra5 {[%emt 0:04:47]} 25. Rb3 {[%emt 0:02:02]} Rxb3 {[%emt 0:03:17]} 26. Nxb3 {[%emt 0:00:02]} Rb5 {[%emt 0:00:20]} 27. Bc2 {[%emt 0:06:35]} Nc4 {[%emt 0:01:27]} 28. Ra1 {[%emt 0:00:53]} a5 {[%emt 0:00:07]} 29. Ra2 {[%emt 0:01:58]} Kf8 {[%emt 0:03:23]} 30. Nc5 {[%emt 0:01:33]} Ke7 {[%emt 0:02:19]} 31. Bd3 {[%emt 0:01:53]} Kd6 {[%emt 0:00:55]} 32. Bxc4 {[%emt 0:04:04]} dxc4 {[%emt 0:00:03]} 33. Ne4+ {[%emt 0:00:24]} Kc7 {[%emt 0:02:24]} 34. Nc3 {[%emt 0:00:09]} Rb3 {[%emt 0:00:57]} 35. Kd2 {[%emt 0:00:02]} Kb6 {[%emt 0:03:14]} 36. Kc2 {[%emt 0:01:23]} Bd7 {[%emt 0:04:06]} 37. e4 {[%emt 0:00:24]} f6 {[%emt 0:01:40]} 38. Ra1 {[%emt 0:00:28]} Ka6 {[%emt 0:01:20]} 39. f4 {[%emt 0:01:37]} Rb8 {[%emt 0:00:33]} 40. Na4 {[%emt 0:03:58]} Bxa4+ {[%emt 0:04:04]} 41. Rxa4 {[%emt 0:00:02]} Rb4 {[%emt 0:00:20]} 42. Ra1 {[%emt 0:00:04]} Rb3 {[%emt 0:00:47]} 43. d5 {[%emt 0:07:03]} Re3 {[%emt 0:02:37]} 44. d6 {[%emt 0:03:14]} Kb7 {[%emt 0:00:10]} 45. Rd1 {[%emt 0:00:12]} Kc8 {[%emt 0:00:11]} 46. Rd4 {[%emt 0:00:09]} c3 {[%emt 0:01:07]} 47. f5 {[%emt 0:04:21]} Kd7 {[%emt 0:00:15]} 48. Kb3 {[%emt 0:01:03]} h5 {[%emt 0:00:33]} 49. g3 {[%emt 0:00:06]} Rf3 {[%emt 0:02:24]} 50. Kc2 {[%emt 0:01:25]} Rf2+ {[%emt 0:02:18]} 51. Kxc3 {[%emt 0:00:02]} Rxh2 {[%emt 0:00:04]} 52. Ra4 {[%emt 0:01:30]} Rh3 {[%emt 0:00:07]} 53. Rxa5 {[%emt 0:00:19]} h4 {[%emt 0:01:19]} 54. Kd4 {[%emt 0:00:31]} hxg3 {[%emt 0:00:38]} 55. Ra7+ {[%emt 0:00:24]} Kxd6 {[%emt 0:00:59]} 56. Rxg7 {[%emt 0:00:02]} Rh1 {[%emt 0:00:16]} 57. Rxg3 {[%emt 0:00:14]} Ra1 {[%emt 0:00:24]} 58. Rb3 {[%emt 0:00:12]} Ra4+ {[%emt 0:00:20]} 59. Ke3 {[%emt 0:00:03]} Ra1 {[%emt 0:00:43]} 60. Rb6+ {[%emt 0:00:03]} Ke7 {[%emt 0:00:08]} 61. Rb7+ {[%emt 0:00:41]} Ke8 {[%emt 0:01:44]} 62. Kd4 {[%emt 0:00:19]} Rd1+ {[%emt 0:00:21]} 63. Kc5 {[%emt 0:00:28]} Rd2 {[%emt 0:00:18]} 64. Rb6 {[%emt 0:01:14]} Ke7 {[%emt 0:00:07]} 65. Re6+ {[%emt 0:01:19]} Kf7 {[%emt 0:00:01]} 66. Rd6 {[%emt 0:00:09]} Rc2+ {[%emt 0:00:10]} 67. Kd5 {[%emt 0:00:18]} Rd2+ {[%emt 0:00:04]} 68. Kc6 {[%emt 0:00:20]} Re2 {[%emt 0:00:35]} 69. Rd7+ {[%emt 0:00:36]} Ke8 {[%emt 0:00:05]} 70. Rd4 {[%emt 0:00:07]} Ke7 {[%emt 0:00:04]} 71. Kd5 {[%emt 0:00:20]} Ra2 {[%emt 0:00:08]} 72. Rb4 {[%emt 0:00:08]} Rd2+ {[%emt 0:00:08]} 73. Kc5 {[%emt 0:00:26]} Rc2+ {[%emt 0:00:06]} 74. Kd4 {[%emt 0:00:06]} Rd2+ {[%emt 0:00:08]} 75. Ke3 {[%emt 0:00:07]} Rd1 {[%emt 0:00:05]} 76. Kf4 {[%emt 0:01:55]} Rf1+ {[%emt 0:00:04]} 77. Kg4 {[%emt 0:00:09]} Rg1+ {[%emt 0:00:04]} 78. Kf3 {[%emt 0:00:17]} Rf1+ {[%emt 0:00:13]} 79. Ke3 {[%emt 0:00:06]} Rd1 {[%emt 0:00:04]} 80. Rb7+ {[%emt 0:00:14]} Ke8 {[%emt 0:00:04]} 81. Kf4 {[%emt 0:00:30]} Kf8 {[%emt 0:00:07]} 82. Kg4 {[%emt 0:01:11]} Rd4 {[%emt 0:00:40]} 83. Kh5 {[%emt 0:01:03]} Rxe4 {[%emt 0:00:02]} 84. Kg6 {[%emt 0:00:01]} Ra4 {[%emt 0:00:10]} 85. Rb6 {[%emt 0:01:52]} Ra7 {[%emt 0:02:13]} 86. Rxf6+ {[%emt 0:00:34]} Kg8 {[%emt 0:00:01]} 87. Rb6 {[%emt 0:00:02]} Rg7+ {[%emt 0:00:18]} 88. Kf6 {[%emt 0:00:32]} Rf7+ {[%emt 0:00:32]} 89. Ke6 {[%emt 0:00:03]} Kg7 {[%emt 0:00:23]} 90. Rb8 {[%emt 0:01:49]} Rf6+ {[%emt 0:00:15]} 91. Ke5 {[%emt 0:00:10]} Ra6 {[%emt 0:00:09]} 92. Rb7+ {[%emt 0:00:15]} Kf8 {[%emt 0:00:04]} 93. Rd7 {[%emt 0:00:26]} Rb6 {[%emt 0:00:15]} 94. Kf4 {[%emt 0:00:34]} Ra6 {[%emt 0:00:12]} 95. Kg5 {[%emt 0:00:09]} Rb6 {[%emt 0:00:08]} 96. Rh7 {[%emt 0:00:11]} Ra6 {[%emt 0:00:06]} 97. Rh8+ {[%emt 0:00:07]} Kf7 {[%emt 0:00:02]} 98. Rb8 {[%emt 0:00:09]} Rc6 {[%emt 0:00:07]} 99. Rb5 {[%emt 0:00:31]} Ra6 {[%emt 0:00:06]} 100. Rb7+ {[%emt 0:02:39]} Kf8 {[%emt 0:00:02]} 101. Kf4 {[%emt 0:00:10]} Ra4+ {[%emt 0:00:06]} 102. Ke5 {[%emt 0:00:08]} Ra6 {[%emt 0:00:03]} 103. Rc7 {[%emt 0:00:16]} Rb6 {[%emt 0:00:04]} 104. Ra7 {[%emt 0:00:04]} Rc6 {[%emt 0:00:02]} 105. Kd4 {[%emt 0:01:33]} Rb6 {[%emt 0:00:05]} 106. Ke5 {[%emt 0:00:46]} Rc6 {[%emt 0:00:08]} 107. Kf4 {[%emt 0:00:13]} Rb6 {[%emt 0:00:06]} 108. Kg5 {[%emt 0:00:04]} Rc6 {[%emt 0:00:03]} 109. Kh5 {[%emt 0:00:55]} Rb6 {[%emt 0:00:05]} 110. Ra4 {[%emt 0:00:20]} Kf7 {[%emt 0:00:05]} 111. Rg4 {[%emt 0:00:14]} Rb5 {[%emt 0:00:15]} 112. Kg5 {[%emt 0:00:13]} Rb1 {[%emt 0:00:05]} 1/2-1/2

[Event "1st Gujarat GM Open 2018"]
[Site "Ahmedabad"]
[Date "2018.10.07"]
[Round "3"]
[White "Manish Anto Cristiano F"]
[Black "Konguvel, Ponnuswamy"]
[Result "1-0"]
[ECO "B80"]
[WhiteElo "1961"]
[BlackElo "2325"]
[Annotator "NA"]
[PlyCount "88"]
[EventDate "2018.10.05"]
[EventType "swiss"]
[EventCountry "IND"]
[SourceTitle "playchess.com"]
[Source "ChessBase"]
[SourceQuality "1"]
[TimeControl "5400+30"]

1. e4 {[%emt 0:00:00]} c5 {[%emt 0:00:00]} 2. Nf3 {[%emt 0:00:14]} e6 {[%emt 0:00:34]} 3. d4 {[%emt 0:00:36]} cxd4 {[%emt 0:00:10]} 4. Nxd4 {[%emt 0:00:17]} Nf6 {[%emt 0:01:10]} 5. Nc3 {[%emt 0:00:30]} d6 {[%emt 0:00:05]} 6. g3 {[%emt 0:04:27]} Be7 {[%emt 0:03:19]} 7. Bg2 {[%emt 0:01:30]} O-O {[%emt 0:01:57]} 8. O-O {[%emt 0:01:32]} a6 {[%emt 0:00:24]} 9. a4 {[%emt 0:01:44]} Qc7 {[%emt 0:02:23]} 10. f4 {[%emt 0:10:02]} Nc6 {[%emt 0:01:05]} 11. Be3 {[%emt 0:01:00]} Bd7 {[%emt 0:21:29]} 12. Nb3 {[%emt 0:03:03]} Na5 {[%emt 0:06:44]} 13. Nxa5 {[%emt 0:02:06]} Qxa5 {[%emt 0:00:04]} 14. Qd2 {[%emt 0:03:23]} Qc7 {[%emt 0:07:07]} 15. h3 {[%emt 0:00:51]} Bc6 {[%emt 0:00:28]} 16. a5 {[%emt 0:04:01]} Rac8 {[%emt 0:01:29]} 17. Rfc1 {[%emt 0:02:58]} Qb8 {[%emt 0:11:01]} 18. Qd3 {[%emt 0:03:59]} Nd7 {[%emt 0:01:16]} 19. b4 {[%emt 0:16:24]} Bf6 {[%emt 0:06:54]} 20. Bd4 {[%emt 0:01:32]} e5 {[%emt 0:02:34]} 21. fxe5 {[%emt 0:00:18]} Bxe5 {[%emt 0:00:12]} 22. Rd1 {[%emt 0:03:36]} Rfd8 {[%emt 0:10:10]} 23. Rac1 {[%emt 0:01:55]} b5 {[%emt 0:05:06]} 24. axb6 {[%emt 0:01:24]} Bxd4+ {[%emt 0:00:03]} 25. Qxd4 {[%emt 0:00:33]} Nxb6 {[%emt 0:00:01]} 26. Kh2 {[%emt 0:01:41]} h6 {[%emt 0:04:41]} 27. Ra1 {[%emt 0:05:00]} Bb5 {[%emt 0:03:57]} 28. Nxb5 {[%emt 0:00:38]} axb5 {[%emt 0:00:01]} 29. Ra6 {[%emt 0:03:29]} Nc4 {[%emt 0:00:02]} 30. c3 {[%emt 0:00:54]} Qc7 {[%emt 0:04:13]} 31. Ra7 {[%emt 0:00:42]} Qb6 {[%emt 0:00:08]} 32. Rf1 {[%emt 0:00:38]} Qxd4 {[%emt 0:00:55]} 33. cxd4 {[%emt 0:00:12]} f6 {[%emt 0:00:04]} 34. Re1 {[%emt 0:02:51]} Re8 {[%emt 0:02:11]} 35. Re2 {[%emt 0:01:03]} Kf8 {[%emt 0:01:02]} 36. Rea2 {[%emt 0:08:05]} Ne3 {[%emt 0:00:07]} 37. Rb7 {[%emt 0:02:08]} Rb8 {[%emt 0:01:31]} 38. Rd7 {[%emt 0:01:44]} Rbd8 {[%emt 0:01:16]} 39. Rb7 {[%emt 0:00:23]} Rb8 {[%emt 0:00:05]} 40. Rd7 {[%emt 0:00:20]} Red8 {[%emt 0:00:19]} 41. Rc7 {[%emt 0:00:44]} Ra8 {[%emt 0:01:07]} 42. Re2 {[%emt 0:00:29]} Ra3 {[%emt 0:01:33]} 43. e5 {[%emt 0:01:21]} dxe5 {[%emt 0:00:35]} 44. dxe5 {[%emt 0:00:03]} Nxg2 {[%emt 0:00:33]} 1-0

[Event "1st Gujarat GM Open 2018"]
[Site "Ahmedabad"]
[Date "2018.10.07"]
[Round "3"]
[White "Niraula, Bhupendra"]
[Black "Jubin Jimmy"]
[Result "1/2-1/2"]
[ECO "A05"]
[WhiteElo "1932"]
[BlackElo "2308"]
[Annotator "NA"]
[PlyCount "143"]
[EventDate "2018.10.05"]
[EventType "swiss"]
[EventCountry "IND"]
[SourceTitle "playchess.com"]
[Source "ChessBase"]
[SourceQuality "1"]
[TimeControl "5400+30"]

1. Nf3 Nf6 2. g3 d5 3. Bg2 c5 4. b3 g6 5. Bb2 Bg7 6. O-O O-O 7. d3 Nc6 8. Nbd2 Qc7 9. a3 {A05: Réti Opening: 1 Nf3 Nf6} (9. e4 dxe4 10. dxe4 Rd8 11. Qe2 Nxe4 12. Nxe4 Bxb2 13. Rad1 Nd4 14. Qe3 Bf5 15. Ne1 Bg4 16. f3 Nf5 17. Rxd8+ Rxd8 {1-0 (61) Bordovsky,V (2409)-Volokitin,A (2640) Lvov 2016}) 9... e5 10. e4 Rd8 $146 {Threatens to win with ...dxe4.} ({Predecessor:} 10... dxe4 11. dxe4 Rd8 12. Qe2 Bg4 13. h3 Bxf3 14. Nxf3 Nd4 15. Nxd4 cxd4 16. c3 Qb6 {1-0 (50) Foisor,C (2330)-Trabert,B (2150) Novi Sad 1990}) 11. exd5 {Black has an edge.} Nxd5 12. Rb1 h6 13. Re1 Be6 14. Ne4 b6 15. Qd2 f5 16. Nc3 {[#]} e4 $1 {...Nxc3 is the strong threat.} 17. Nxd5 (17. dxe4 Nxc3) 17... Bxd5 ({Much weaker is} 17... Rxd5 $6 18. Bxg7 Qxg7 19. Qe2 $16) 18. Nh4 Bxb2 19. Rxb2 Qg7 20. Rbb1 Qc7 21. Rb2 Qg7 22. Rbb1 Ne5 23. Qe2 exd3 24. Qxe5 Qxe5 25. Rxe5 dxc2 26. Rc1 Be4 27. Rxe4 fxe4 28. Rxc2 Rd1+ 29. Bf1 Kg7 30. Ng2 Rad8 31. Ne3 Rb1 32. b4 cxb4 33. axb4 Rxb4 34. Rc7+ Kf6 35. Rxa7 Rb2 36. Rb7 Rb1 37. Kg2 h5 38. h4 Rd6 39. Bc4 Rc6 40. Bd5 Rc5 41. Bxe4 Rb2 42. g4 hxg4 43. Nxg4+ Ke6 44. Bxg6 b5 45. h5 b4 46. Bf7+ Kf5 47. h6 Kxg4 48. h7 Rf5 49. Rxb4+ Rxb4 50. h8=Q Rbf4 51. Qh3+ Kg5 52. Qh5+ Kf6 53. Qg6+ Ke7 54. Qe6+ Kf8 55. Qe8+ Kg7 56. Qg8+ Kf6 57. Qg6+ Ke7 58. Bc4 Rxf2+ 59. Kg1 Rf6 60. Qg7+ Kd6 61. Qg3+ Ke7 62. Qc7+ Ke8 63. Bd5 R2f4 64. Qc8+ Ke7 65. Qc7+ Ke8 66. Bc6+ Kf8 67. Qd8+ Kg7 68. Qd7+ Kh6 69. Qh3+ Kg7 70. Qd7+ Kh6 71. Qh3+ Kg7 72. Qd7+ {Rf8} 1/2-1/2

[Event "1st Gujarat GM Open 2018"]
[Site "Ahmedabad"]
[Date "2018.10.07"]
[Round "3"]
[White "Deota Snehil S"]
[Black "Toma, Katarzyna"]
[Result "1-0"]
[ECO "A05"]
[WhiteElo "1929"]
[BlackElo "2278"]
[Annotator "NA"]
[PlyCount "92"]
[EventDate "2018.10.05"]
[EventType "swiss"]
[EventCountry "IND"]
[SourceTitle "playchess.com"]
[Source "ChessBase"]
[SourceQuality "1"]
[TimeControl "5400+30"]

1. Nf3 {[%emt 0:00:36]} Nf6 {[%emt 0:00:00]} 2. c4 {[%emt 0:00:26]} g6 {[%emt 0:00:37]} 3. Nc3 {[%emt 0:00:13]} d5 {[%emt 0:01:45]} 4. cxd5 {[%emt 0:00:21]} Nxd5 {[%emt 0:00:05]} 5. Qb3 {[%emt 0:00:55]} Nb6 {[%emt 0:04:16]} 6. d4 {[%emt 0:00:49]} Bg7 {[%emt 0:00:18]} 7. Bf4 {[%emt 0:00:16]} c6 {[%emt 0:05:47]} 8. Rd1 {[%emt 0:04:03]} Be6 {[%emt 0:05:20]} 9. Qc2 {[%emt 0:01:04]} Nd5 {[%emt 0:00:43]} 10. Be5 {[%emt 0:07:23]} Bxe5 {[%emt 0:08:31]} 11. Nxe5 {[%emt 0:00:17]} f6 {[%emt 0:00:49]} 12. Nd3 {[%emt 0:04:04]} Na6 {[%emt 0:01:40]} 13. e4 {[%emt 0:03:29]} Nxc3 {[%emt 0:11:48]} 14. Qxc3 {[%emt 0:00:35]} Qd6 {[%emt 0:04:09]} 15. a3 {[%emt 0:16:59]} Rd8 {[%emt 0:04:15]} 16. Nc1 {[%emt 0:01:14]} Nc7 {[%emt 0:00:08]} 17. Be2 {[%emt 0:03:25]} Nb5 {[%emt 0:04:07]} 18. Bxb5 {[%emt 0:00:36]} cxb5 {[%emt 0:00:04]} 19. O-O {[%emt 0:00:46]} b6 {[%emt 0:03:05]} 20. d5 {[%emt 0:04:39]} Bd7 {[%emt 0:02:12]} 21. Nd3 {[%emt 0:00:21]} Rc8 {[%emt 0:00:17]} 22. Qd4 {[%emt 0:00:51]} Rc4 {[%emt 0:00:25]} 23. Qe3 {[%emt 0:00:17]} O-O {[%emt 0:00:18]} 24. Rfe1 {[%emt 0:09:06]} a5 {[%emt 0:07:12]} 25. e5 {[%emt 0:06:48]} fxe5 {[%emt 0:13:07]} 26. Nxe5 {[%emt 0:00:19]} Rc2 {[%emt 0:00:10]} 27. f3 {[%emt 0:07:34]} Rd8 {[%emt 0:07:47]} 28. h4 {[%emt 0:12:22]} Qf6 {[%emt 0:03:52]} 29. Rd4 {[%emt 0:04:09]} Rxb2 {[%emt 0:01:18]} 30. Qc3 {[%emt 0:00:58]} Ra2 {[%emt 0:04:17]} 31. Qb3 {[%emt 0:00:43]} Ra1 {[%emt 0:00:06]} 32. Rxa1 {[%emt 0:00:12]} Qxe5 {[%emt 0:00:03]} 33. Rad1 {[%emt 0:00:24]} Rc8 {[%emt 0:02:31]} 34. Re4 {[%emt 0:01:11]} Qd6 {[%emt 0:00:04]} 35. Rde1 {[%emt 0:00:29]} a4 {[%emt 0:01:27]} 36. Qb2 {[%emt 0:01:45]} Re8 {[%emt 0:02:18]} 37. Re5 {[%emt 0:01:12]} Qf6 {[%emt 0:00:53]} 38. Qb4 {[%emt 0:01:01]} Kf7 {[%emt 0:00:43]} 39. R5e4 {[%emt 0:00:40]} Bf5 {[%emt 0:01:16]} 40. Rf4 {[%emt 0:00:23]} Rc8 {[%emt 0:01:02]} 41. Re6 {[%emt 0:04:34]} Qa1+ {[%emt 0:00:51]} 42. Kh2 {[%emt 0:00:07]} Rc7 {[%emt 0:00:30]} 43. Re1 {[%emt 0:01:21]} Qa2 {[%emt 0:00:43]} 44. Re5 {[%emt 0:00:45]} Rc5 {[%emt 0:00:36]} 45. Qe4 {[%emt 0:00:39]} Rc7 {[%emt 0:00:25]} 46. d6 {[%emt 0:01:14]} exd6 {[%emt 0:01:10]} 1-0